[Event "XXIX Cracovia 2018"]
[Site "Krakow"]
[Date "2018.12.31"]
[Round "6"]
[White "Piotrowski, Przemyslaw"]
[Black "Molenda, Marcin"]
[Result "1/2-1/2"]
[ECO "D02"]
[WhiteElo "2269"]
[BlackElo "2383"]
[Annotator "NA"]
[PlyCount "122"]
[EventDate "2018.12.27"]
[EventType "swiss"]
[EventCountry "POL"]
[SourceTitle "playchess.com"]
[Source "ChessBase"]
[SourceQuality "1"]
[TimeControl "40/5400+30:1800+30"]

1. d4 {[%emt 0:00:00]} d5 {[%emt 0:00:00]} 2. Nf3 {[%emt 0:00:00]} Nf6 {[%emt 0:00:00]} 3. g3 {[%emt 0:00:00]} c6 {[%emt 0:00:00]} 4. Bg2 {[%emt 0:00:06]} Bf5 {[%emt 0:00:00]} 5. O-O {[%emt 0:00:06]} e6 {[%emt 0:00:13]} 6. c4 {[%emt 0:00:06]} Nbd7 {[%emt 0:00:24] LiveBook: 374 Games} 7. Nc3 {[%emt 0:00:10]} h6 {[%emt 0:00:08]} 8. Ne5 {[%emt 0:12:33] D11: Slav Defence: 3 Nf3 sidelines and 3...Nf6 4 e3 Bg4} (8. Bf4 a6 9. c5 Be7 10. b4 Ne4 11. Qb3 O-O 12. Nd2 Nxd2 13. Bxd2 Bf6 14. e3 e5 15. dxe5 Nxe5 {0-1 (30) Ponkratov,P (2628)-Antipov,M (2593) Sochi 2018}) 8... Nxe5 {[%emt 0:07:13]} 9. dxe5 {[%emt 0:09:58]} Ng4 {[%emt 0:01:35]} 10. cxd5 {[%emt 0:01:50]} exd5 {[%emt 0:00:53]} 11. e4 $146 {[%emt 0:11:28]} ({Predecessor:} 11. Qa4) 11... dxe4 {[%emt 0:01:17]} 12. Nxe4 {[%emt 0:02:07]} Qxd1 {[%emt 0:01:00]} 13. Rxd1 {[%emt 0:00:06]} Bxe4 {[%emt 0:01:46]} 14. Bxe4 {[%emt 0:00:04]} Bc5 {[%emt 0:00:58]} 15. Rf1 {[%emt 0:15:03]} O-O {[%emt 0:06:26]} 16. Bf4 {[%emt 0:03:33]} Bd4 {[%emt 0:04:15]} 17. h3 {[%emt 0:05:58]} Nxe5 {[%emt 0:01:16]} 18. Rad1 {[%emt 0:01:01]} Rad8 {[%emt 0:00:54]} 19. Bxe5 {[%emt 0:00:06]} Bxe5 {[%emt 0:00:05]} 20. b3 {[%emt 0:00:06]} Bd4 {[%emt 0:01:14]} 21. Rfe1 {[%emt 0:00:50]} Rd6 $15 {[%emt 0:02:49]} 22. Kg2 {[%emt 0:00:43]} Rfd8 {[%emt 0:00:42]} 23. Re2 {[%emt 0:01:24]} Kf8 {[%emt 0:00:56]} 24. h4 {[%emt 0:00:37]} h5 {[%emt 0:02:06]} 25. Rc2 {[%emt 0:01:13]} g6 {[%emt 0:00:28]} 26. Bf3 {[%emt 0:00:28]} Kg7 {[%emt 0:00:50]} 27. Rdd2 {[%emt 0:00:23]} Kh6 {[%emt 0:01:27]} 28. Re2 {[%emt 0:00:57]} Bf6 {[%emt 0:01:56]} 29. Re4 {[%emt 0:01:36]} Kg7 {[%emt 0:04:45]} 30. Re1 {[%emt 0:02:36]} Kf8 {[%emt 0:01:13]} 31. Re4 {[%emt 0:00:29]} Rd2 {[%emt 0:02:33]} 32. Rxd2 {[%emt 0:00:07]} Rxd2 {[%emt 0:00:07]} 33. Re2 {[%emt 0:00:02]} Rd3 {[%emt 0:01:52]} 34. Be4 {[%emt 0:02:15]} Rd1 {[%emt 0:00:47]} 35. Bf3 {[%emt 0:00:16]} Rc1 {[%emt 0:00:32]} 36. Rd2 {[%emt 0:00:43]} Ke7 {[%emt 0:02:01]} 37. Be2 {[%emt 0:02:02]} b5 {[%emt 0:01:49]} 38. Bd3 {[%emt 0:00:40]} a6 {[%emt 0:01:18]} 39. Rc2 {[%emt 0:00:19]} Rxc2 {[%emt 0:00:30]} 40. Bxc2 {[%emt 0:00:00]} Bc3 {[%emt 0:00:00]} 41. Kf3 {[%emt 0:00:25]} f5 {[%emt 0:05:32]} 42. Ke3 {[%emt 0:01:25]} Ke6 {[%emt 0:04:40]} 43. Bd1 {[%emt 0:00:35]} Ke5 {[%emt 0:01:13]} 44. Bf3 {[%emt 0:00:17]} Bd4+ {[%emt 0:00:13]} 45. Ke2 {[%emt 0:00:03]} Kd6 {[%emt 0:00:17]} 46. Bg2 {[%emt 0:10:16]} Kc5 {[%emt 0:10:55]} 47. f4 {[%emt 0:06:14]} Bc3 {[%emt 0:04:32]} 48. Bf3 {[%emt 0:01:38]} a5 {[%emt 0:02:17]} 49. Kd1 {[%emt 0:03:47]} Bd4 {[%emt 0:07:23]} 50. Ke2 {[%emt 0:00:48]} a4 {[%emt 0:02:21]} 51. Bg2 {[%emt 0:00:50]} a3 {[%emt 0:02:51]} 52. Bf3 {[%emt 0:00:30]} Kd6 {[%emt 0:04:20]} 53. Kf1 {[%emt 0:00:46]} c5 {[%emt 0:03:45]} 54. Be2 {[%emt 0:00:20]} Kc6 {[%emt 0:00:38]} 55. Bf3+ {[%emt 0:00:08]} Kb6 {[%emt 0:10:04]} 56. Ke1 {[%emt 0:03:59]} Ka5 {[%emt 0:10:30]} 57. Bd5 {[%emt 0:02:46]} c4 {[%emt 0:03:39]} 58. bxc4 {[%emt 0:00:16]} b4 {[%emt 0:00:05]} 59. c5 {[%emt 0:00:04]} Bxc5 {[%emt 0:00:11]} 60. Bf7 {[%emt 0:00:45]} Kb5 {[%emt 0:00:47]} 61. Kd1 {[%emt 0:00:15]} Bf2 {[%emt 0:00:52]} 1/2-1/2

[Event "XXIX Cracovia 2018"]
[Site "Krakow"]
[Date "2018.12.31"]
[Round "6"]
[White "Krallis, Christos"]
[Black "Paszewski, Mateusz"]
[Result "0-1"]
[ECO "A20"]
[WhiteElo "2261"]
[BlackElo "2342"]
[Annotator "NA"]
[PlyCount "64"]
[EventDate "2018.12.27"]
[EventType "swiss"]
[EventCountry "POL"]
[SourceTitle "playchess.com"]
[Source "ChessBase"]
[SourceQuality "1"]
[TimeControl "40/5400+30:1800+30"]

1. c4 {[%emt 0:03:31]} e5 {[%emt 0:00:00]} 2. g3 {[%emt 0:00:22]} Nc6 {[%emt 0:00:00]} 3. Bg2 {[%emt 0:00:04]} Bc5 {[%emt 0:00:00]} 4. Nc3 {[%emt 0:01:30]} a6 {[%emt 0:00:34]} 5. e3 {[%emt 0:09:13]} d6 {[%emt 0:00:15]} 6. Nge2 {[%emt 0:00:43]} Ba7 {[%emt 0:00:09]} 7. Rb1 {[%emt 0:12:55]} h5 {[%emt 0:06:38]} 8. h4 {[%emt 0:02:34]} Nf6 {[%emt 0:07:05]} 9. b4 {[%emt 0:07:09]} Bf5 {[%emt 0:04:00]} 10. d3 {[%emt 0:02:12]} Qd7 {[%emt 0:01:03]} 11. a4 {[%emt 0:08:31]} Rb8 {[%emt 0:20:03]} 12. b5 {[%emt 0:05:00]} axb5 $14 {[%emt 0:02:54]} 13. axb5 {[%emt 0:01:40]} Ne7 {[%emt 0:00:31]} 14. Na4 {[%emt 0:03:22]} Nc8 {[%emt 0:03:38]} 15. O-O {[%emt 0:16:00]} Bh3 {[%emt 0:03:53]} 16. Bb2 {[%emt 0:07:01]} Bxg2 {[%emt 0:04:07]} 17. Kxg2 {[%emt 0:00:01]} Ng4 {[%emt 0:00:10]} 18. d4 {[%emt 0:06:29]} Qf5 {[%emt 0:05:56]} 19. Ng1 {[%emt 0:07:32]} Ne7 {[%emt 0:12:56]} 20. Nc3 {[%emt 0:04:05]} g5 {[%emt 0:09:06]} 21. Nf3 {[%emt 0:00:00]} f6 {[%emt 0:01:29]} 22. e4 {[%emt 0:00:32]} Qg6 {[%emt 0:00:38]} 23. hxg5 {[%emt 0:00:30]} fxg5 {[%emt 0:00:24]} 24. Qd2 {[%emt 0:00:29]} Rf8 {[%emt 0:05:05]} 25. dxe5 {[%emt 0:00:26]} Bxf2 {[%emt 0:01:26]} 26. exd6 {[%emt 0:00:37]} cxd6 {[%emt 0:00:02]} 27. Nd5 {[%emt 0:00:29]} Nxd5 {[%emt 0:02:05]} 28. exd5 {[%emt 0:00:25]} Ne3+ {[%emt 0:01:51]} 29. Kxf2 {[%emt 0:00:29]} Nxf1 {[%emt 0:00:02]} 30. Re1+ {[%emt 0:00:35]} Kd7 {[%emt 0:00:18]} 31. Qe2 {[%emt 0:00:30]} Rbe8 {[%emt 0:00:40]} 32. Qxf1 {[%emt 0:00:02]} Rxf3+ {[%emt 0:01:56]} 0-1

[Event "XXIX Cracovia 2018"]
[Site "Krakow"]
[Date "2018.12.31"]
[Round "6"]
[White "Chmiel, Marcin"]
[Black "Colijn, Stefan"]
[Result "0-1"]
[ECO "A20"]
[WhiteElo "2247"]
[BlackElo "2331"]
[Annotator "NA"]
[PlyCount "124"]
[EventDate "2018.12.27"]
[EventType "swiss"]
[EventCountry "POL"]
[SourceTitle "playchess.com"]
[Source "ChessBase"]
[SourceQuality "1"]
[TimeControl "40/5400+30:1800+30"]

1. c4 e5 {[%emt 0:01:38]} 2. g3 {[%emt 0:00:00]} Nf6 {[%emt 0:00:05]} 3. Bg2 {[%emt 0:00:00]} Nc6 {[%emt 0:00:05]} 4. Nc3 {[%emt 0:00:00]} Bc5 {[%emt 0:00:10]} 5. Nf3 {[%emt 0:00:06]} d6 {[%emt 0:01:11]} 6. d3 {[%emt 0:00:16]} h6 {[%emt 0:00:10]} 7. O-O {[%emt 0:00:18]} O-O {[%emt 0:00:10]} 8. a3 {[%emt 0:00:05]} a5 {[%emt 0:00:26]} 9. e3 {[%emt 0:00:36]} Ba7 {[%emt 0:02:06]} 10. b3 {[%emt 0:01:46]} Re8 {[%emt 0:00:36]} 11. Bb2 {[%emt 0:00:37]} Bf5 {[%emt 0:00:39]} 12. h3 {[%emt 0:02:53]} Qd7 {[%emt 0:13:38]} 13. Kh2 e4 {[%emt 0:20:51]} 14. dxe4 {[%emt 0:07:30]} Nxe4 {[%emt 0:02:48]} 15. Nd5 {[%emt 0:02:45]} Nc5 {[%emt 0:04:13]} 16. b4 {[%emt 0:06:26]} Nd3 {[%emt 0:01:52]} 17. Bc3 {[%emt 0:00:28]} Nde5 $16 {[%emt 0:05:13]} (17... Nce5 $11) 18. Nh4 {[%emt 0:18:57]} Bd3 {[%emt 0:03:19]} 19. b5 {[%emt 0:01:53]} Bxf1 {[%emt 0:01:19]} 20. Qxf1 {[%emt 0:06:11]} Nd8 {[%emt 0:01:55]} 21. Bxa5 {[%emt 0:01:28]} Bb8 {[%emt 0:03:06]} 22. Bc3 {[%emt 0:05:43]} Ra4 {[%emt 0:00:50]} 23. Qd1 {[%emt 0:04:54]} Rxc4 {[%emt 0:07:32]} 24. f4 {[%emt 0:00:51]} Rxc3 {[%emt 0:00:04]} 25. Nxc3 {[%emt 0:01:17]} Nc4 {[%emt 0:00:01]} 26. Qd4 {[%emt 0:04:13]} Nxe3 {[%emt 0:04:20]} 27. Be4 {[%emt 0:02:35]} d5 {[%emt 0:04:41]} 28. Nxd5 {[%emt 0:03:50]} Nxd5 {[%emt 0:05:40]} 29. Qxd5 {[%emt 0:00:10]} Qe7 {[%emt 0:02:04]} 30. Re1 {[%emt 0:02:38]} Kf8 {[%emt 0:01:47]} 31. Re2 {[%emt 0:09:51]} Qxa3 {[%emt 0:04:43]} 32. Qf5 {[%emt 0:00:34]} Re6 {[%emt 0:00:05]} 33. Qh7 {[%emt 0:01:25]} Qc3 {[%emt 0:01:50]} 34. Nf5 {[%emt 0:01:40]} g6 {[%emt 0:00:43]} 35. Rc2 {[%emt 0:02:08]} Qf6 {[%emt 0:01:29]} 36. Qxh6+ {[%emt 0:05:13]} Kg8 {[%emt 0:00:01]} 37. Rd2 {[%emt 0:01:08]} Re8 {[%emt 0:00:49]} 38. h4 {[%emt 0:05:30]} Ne6 {[%emt 0:02:08]} 39. h5 {[%emt 0:00:33]} Nf8 {[%emt 0:01:25]} 40. Bb1 {[%emt 0:00:00]} Ba7 {[%emt 0:00:00]} 41. Kh3 {[%emt 0:08:03]} Bc5 {[%emt 0:13:34]} 42. hxg6 {[%emt 0:03:32]} Nxg6 {[%emt 0:00:14]} 43. Kg4 {[%emt 0:05:28]} Bf8 {[%emt 0:07:45]} 44. Qh5 {[%emt 0:00:51]} c5 {[%emt 0:02:15]} 45. Ba2 {[%emt 0:02:43]} Re4 {[%emt 0:00:46]} 46. Bd5 {[%emt 0:08:58]} Rb4 {[%emt 0:02:13]} 47. Re2 {[%emt 0:00:43]} c4 {[%emt 0:04:36]} 48. Re8 {[%emt 0:00:48]} c3 {[%emt 0:00:21]} 49. Nh6+ {[%emt 0:02:33]} Kg7 {[%emt 0:00:01]} 50. Nxf7 {[%emt 0:01:35]} Rxf4+ {[%emt 0:01:04]} 51. gxf4 {[%emt 0:01:24]} Qxf4+ {[%emt 0:00:01]} 52. Kh3 {[%emt 0:00:09]} Qf1+ {[%emt 0:00:02]} 53. Kh2 {[%emt 0:00:51]} Qf2+ {[%emt 0:00:45]} 54. Kh1 {[%emt 0:00:24]} Qf1+ {[%emt 0:00:35]} 55. Kh2 {[%emt 0:00:02]} Qf2+ {[%emt 0:02:19]} 56. Bg2 {[%emt 0:00:17]} Qf4+ {[%emt 0:00:05]} 57. Kg1 {[%emt 0:00:38]} c2 {[%emt 0:00:07]} 58. Re1 {[%emt 0:01:51]} c1=Q {[%emt 0:00:03]} 59. Rxc1 {[%emt 0:00:22]} Qxc1+ {[%emt 0:00:02]} 60. Kf2 {[%emt 0:00:58]} Bc5+ {[%emt 0:01:22]} 61. Kg3 Qe1+ {[%emt 0:00:30]} 62. Kh2 Bg1+ {[%emt 0:00:30]} 0-1

[Event "XXIX Cracovia 2018"]
[Site "Krakow"]
[Date "2018.12.31"]
[Round "6"]
[White "Zaleski, Lukasz"]
[Black "Dietmayer-Kraeutler, Marco"]
[Result "0-1"]
[ECO "B01"]
[WhiteElo "2116"]
[BlackElo "2311"]
[Annotator "NA"]
[PlyCount "80"]
[EventDate "2018.12.27"]
[EventType "swiss"]
[EventCountry "POL"]
[SourceTitle "playchess.com"]
[Source "ChessBase"]
[SourceQuality "1"]
[TimeControl "40/5400+30:1800+30"]

1. e4 {[%emt 0:00:23]} d5 {[%emt 0:00:06]} 2. exd5 {[%emt 0:00:35]} Qxd5 {[%emt 0:00:01]} 3. Nc3 {[%emt 0:00:15]} Qa5 {[%emt 0:00:04]} 4. d4 {[%emt 0:00:12]} Nf6 {[%emt 0:00:06]} 5. Nf3 {[%emt 0:00:48]} Bf5 {[%emt 0:00:08]} 6. Bc4 {[%emt 0:00:49]} e6 {[%emt 0:00:07]} 7. Bd2 {[%emt 0:00:46]} Bb4 {[%emt 0:01:52]} 8. a3 {[%emt 0:07:05]} Bxc3 {[%emt 0:00:05]} 9. Bxc3 {[%emt 0:00:08]} Qb6 {[%emt 0:00:09]} 10. Ne5 {[%emt 0:09:57]} Nc6 {[%emt 0:05:02]} 11. Bd3 {[%emt 0:18:47]} Nxe5 {[%emt 0:24:30]} 12. dxe5 {[%emt 0:03:15]} Ne4 $11 {[%emt 0:00:29]} 13. Bxe4 {[%emt 0:18:26]} Bxe4 {[%emt 0:00:08]} 14. Qg4 {[%emt 0:01:12]} Bxc2 {[%emt 0:02:57]} 15. O-O {[%emt 0:11:33]} O-O {[%emt 0:12:24]} 16. Rac1 {[%emt 0:01:25]} Bf5 {[%emt 0:02:57]} 17. Qh4 {[%emt 0:00:39]} Rfd8 {[%emt 0:00:53]} 18. Rfd1 {[%emt 0:01:07]} Bd3 {[%emt 0:04:59]} 19. Rd2 {[%emt 0:03:40]} Rd5 {[%emt 0:01:05]} 20. Rcd1 {[%emt 0:00:33]} Qb3 {[%emt 0:02:30]} 21. h3 {[%emt 0:02:08]} Qc4 {[%emt 0:04:12]} 22. Qg5 {[%emt 0:01:36]} h6 {[%emt 0:00:54]} 23. Qe3 {[%emt 0:01:50]} Rad8 {[%emt 0:05:12]} 24. f3 {[%emt 0:10:00]} c5 {[%emt 0:00:30]} 25. g4 {[%emt 0:00:33]} b5 {[%emt 0:01:51]} 26. Ba5 {[%emt 0:01:53]} Bc2 {[%emt 0:06:25]} 27. Rxd5 {[%emt 0:01:03]} Rxd5 {[%emt 0:00:04]} 28. Rxd5 {[%emt 0:00:37]} Qxd5 {[%emt 0:00:16]} 29. Qd2 {[%emt 0:01:57]} Bd3 {[%emt 0:00:09]} 30. Kf2 {[%emt 0:00:53]} Qd4+ {[%emt 0:00:30]} 31. Kg2 {[%emt 0:00:52]} b4 {[%emt 0:00:02]} 32. Qc1 {[%emt 0:00:31]} bxa3 {[%emt 0:03:51]} 33. Bc3 {[%emt 0:00:12]} axb2 {[%emt 0:00:38]} 34. Qxb2 {[%emt 0:00:03]} Qa4 {[%emt 0:01:20]} 35. h4 {[%emt 0:01:13]} Qd1 {[%emt 0:03:15]} 36. Qf2 {[%emt 0:00:28]} Be2 {[%emt 0:00:13]} 37. Ba5 {[%emt 0:00:34]} c4 {[%emt 0:00:20]} 38. Kg3 {[%emt 0:00:27]} Qd3 {[%emt 0:00:08]} 39. Kf4 {[%emt 0:00:29]} Bd1 {[%emt 0:00:38]} 40. Qe3 {[%emt 0:00:00]} g5+ {[%emt 0:00:00]} 0-1

[Event "XXIX Cracovia 2018"]
[Site "Krakow"]
[Date "2018.12.31"]
[Round "6"]
[White "Romashov, Anton"]
[Black "Bachor, Tomasz"]
[Result "1/2-1/2"]
[ECO "A05"]
[WhiteElo "2076"]
[BlackElo "1854"]
[Annotator "NA"]
[PlyCount "146"]
[EventDate "2018.12.27"]
[EventType "swiss"]
[EventCountry "POL"]
[SourceTitle "playchess.com"]
[Source "ChessBase"]
[SourceQuality "1"]
[TimeControl "40/5400+30:1800+30"]

1. Nf3 {[%emt 0:00:00]} Nf6 {[%emt 0:00:23]} 2. g3 {[%emt 0:00:12]} g6 {[%emt 0:01:03]} 3. Bg2 {[%emt 0:04:53]} Bg7 {[%emt 0:00:10]} 4. O-O {[%emt 0:00:03]} O-O {[%emt 0:00:24]} 5. d3 {[%emt 0:00:03]} d5 {[%emt 0:04:04]} 6. c4 {[%emt 0:00:27]} c6 {[%emt 0:02:23]} 7. Nbd2 {[%emt 0:05:20]} Nbd7 {[%emt 0:09:08]} 8. Rb1 {[%emt 0:04:12]} a5 {[%emt 0:04:12]} 9. a3 {[%emt 0:05:17]} a4 {[%emt 0:04:41]} 10. b4 {[%emt 0:03:21]} b5 {[%emt 0:10:21]} 11. Bb2 {[%emt 0:03:58]} Re8 {[%emt 0:08:23]} 12. Ne5 {[%emt 0:07:12]} Nxe5 {[%emt 0:04:44]} 13. Bxe5 {[%emt 0:00:06]} Bb7 {[%emt 0:03:09]} 14. cxb5 {[%emt 0:06:38]} cxb5 {[%emt 0:00:16]} 15. Nf3 {[%emt 0:00:08]} Nd7 {[%emt 0:05:15]} 16. Bxg7 {[%emt 0:14:52]} Kxg7 {[%emt 0:00:06]} 17. h4 {[%emt 0:01:25]} e5 {[%emt 0:04:37]} 18. Rc1 {[%emt 0:00:33]} Qb6 {[%emt 0:02:14]} 19. Qd2 {[%emt 0:01:05]} Rac8 {[%emt 0:04:09]} 20. Bh3 {[%emt 0:05:14]} f5 {[%emt 0:06:27]} 21. h5 {[%emt 0:00:34]} Qd6 {[%emt 0:02:59]} 22. Nh4 {[%emt 0:04:31]} Qf6 {[%emt 0:03:20]} 23. e4 {[%emt 0:02:16]} dxe4 {[%emt 0:01:15]} 24. dxe4 {[%emt 0:00:03]} Nb6 {[%emt 0:01:46]} 25. Rxc8 {[%emt 0:11:28]} Bxc8 {[%emt 0:01:40]} 26. exf5 {[%emt 0:02:34]} g5 {[%emt 0:04:43]} 27. Nf3 {[%emt 0:01:05]} Bxf5 {[%emt 0:01:27]} 28. Bxf5 {[%emt 0:07:38]} Qxf5 {[%emt 0:00:05]} 29. Qxg5+ {[%emt 0:00:07]} Qxg5 {[%emt 0:00:03]} 30. Nxg5 {[%emt 0:00:06]} Kh6 {[%emt 0:01:36]} 31. Ne4 {[%emt 0:00:06]} Rd8 {[%emt 0:01:11]} 32. Nc3 {[%emt 0:01:15]} Rd3 {[%emt 0:02:53]} 33. Nxb5 {[%emt 0:00:16]} Nc4 {[%emt 0:00:14]} 34. Re1 {[%emt 0:03:37]} Kxh5 {[%emt 0:01:38]} 35. Re4 {[%emt 0:01:19]} Nxa3 {[%emt 0:00:13]} 36. Nxa3 {[%emt 0:00:18]} Rxa3 {[%emt 0:00:05]} 37. Rxe5+ {[%emt 0:00:08]} Kg6 {[%emt 0:00:15]} 38. Ra5 {[%emt 0:00:24]} Ra1+ {[%emt 0:00:09]} 39. Kg2 {[%emt 0:00:07]} a3 {[%emt 0:00:06]} 40. b5 {[%emt 0:00:00]} Rb1 {[%emt 0:00:00]} 41. Ra6+ {[%emt 0:01:41]} Kg5 {[%emt 0:04:35]} 42. b6 {[%emt 0:01:22]} a2 {[%emt 0:01:32]} 43. Rxa2 {[%emt 0:00:06]} Rxb6 {[%emt 0:00:04]} 44. Ra5+ {[%emt 0:00:04]} Kg6 {[%emt 0:01:40]} 45. g4 {[%emt 0:00:19]} h6 {[%emt 0:02:48]} 46. Kg3 {[%emt 0:00:09]} Rb3+ {[%emt 0:01:04]} 47. f3 {[%emt 0:00:10]} Rb4 {[%emt 0:01:18]} 48. Ra6+ {[%emt 0:00:19]} Kg7 {[%emt 0:00:12]} 49. Re6 {[%emt 0:00:40]} Ra4 {[%emt 0:01:17]} 50. Re4 {[%emt 0:00:19]} Ra3 {[%emt 0:00:27]} 51. Kf4 {[%emt 0:00:11]} Kf6 {[%emt 0:00:11]} 52. Rd4 {[%emt 0:01:05]} Ra6 {[%emt 0:01:09]} 53. Rd5 {[%emt 0:01:13]} Ra4+ {[%emt 0:00:10]} 54. Kg3 {[%emt 0:00:05]} Rb4 {[%emt 0:06:19]} 55. Rd6+ {[%emt 0:00:16]} Kg7 {[%emt 0:00:12]} 56. Rd7+ {[%emt 0:06:11]} Kf6 {[%emt 0:01:26]} 57. f4 {[%emt 0:00:24]} Rb3+ {[%emt 0:09:00]} 58. Kh4 {[%emt 0:00:02]} Rb1 {[%emt 0:00:44]} 59. f5 {[%emt 0:02:24]} Rh1+ {[%emt 0:00:12]} 60. Kg3 {[%emt 0:00:05]} h5 {[%emt 0:03:34]} 61. Rd6+ {[%emt 0:00:20]} Ke7 {[%emt 0:00:32]} 62. Re6+ {[%emt 0:00:07]} Kf7 {[%emt 0:00:06]} 63. g5 {[%emt 0:00:11]} Rg1+ {[%emt 0:00:03]} 64. Kf4 {[%emt 0:03:03]} Rg4+ {[%emt 0:00:05]} 65. Ke5 {[%emt 0:00:24]} Rxg5 {[%emt 0:00:05]} 66. Ra6 {[%emt 0:00:17]} Rg1 {[%emt 0:06:58]} 67. Ra7+ {[%emt 0:00:03]} Ke8 {[%emt 0:00:11]} 68. Ke6 {[%emt 0:00:26]} Re1+ {[%emt 0:00:47]} 69. Kf6 {[%emt 0:00:09]} h4 {[%emt 0:01:47]} 70. Ra8+ {[%emt 0:00:27]} Kd7 {[%emt 0:00:07]} 71. Rh8 {[%emt 0:00:51]} Rh1 {[%emt 0:00:35]} 72. Kf7 {[%emt 0:00:52]} h3 {[%emt 0:00:22]} 73. f6 {[%emt 0:02:26]} h2 {[%emt 0:00:10]} 1/2-1/2

[Event "XXIX Cracovia 2018"]
[Site "Krakow"]
[Date "2018.12.31"]
[Round "6"]
[White "Siprashvili, Ivane"]
[Black "Warchol, Bartosz"]
[Result "1-0"]
[ECO "A07"]
[WhiteElo "2074"]
[BlackElo "1975"]
[Annotator "NA"]
[PlyCount "86"]
[EventDate "2018.12.27"]
[EventType "swiss"]
[EventCountry "POL"]
[SourceTitle "playchess.com"]
[Source "ChessBase"]
[SourceQuality "1"]
[TimeControl "40/5400+30:1800+30"]

1. Nf3 {[%emt 0:00:00]} d5 {[%emt 0:00:00]} 2. g3 {[%emt 0:00:00]} c6 {[%emt 0:00:02]} 3. Bg2 {[%emt 0:00:10]} Nf6 {[%emt 0:00:42]} 4. O-O {[%emt 0:00:12]} Bg4 {[%emt 0:00:14]} 5. d3 {[%emt 0:00:24]} Nbd7 {[%emt 0:00:27]} 6. Nbd2 {[%emt 0:00:18]} e5 {[%emt 0:00:17]} 7. h3 {[%emt 0:03:43]} Bh5 {[%emt 0:01:20]} 8. e4 {[%emt 0:00:24]} dxe4 {[%emt 0:03:20]} 9. dxe4 {[%emt 0:00:09]} Bc5 {[%emt 0:01:13]} 10. Qe2 {[%emt 0:00:34] A07: Réti Opening: New York and Capablanca Systems} (10. Qe1 O-O 11. Nh4 Re8 12. Nb3 Bf8 13. Be3 Qc7 14. a4 a5 15. f3 b5 16. Qf2 b4 17. Nd2 c5 18. b3 Nb6 {1-0 (49) Efimenko,Z (2635)-Timman,J (2541) Germany 2018}) 10... O-O {[%emt 0:01:22]} 11. b3 {[%emt 0:01:50]} Qe7 $146 {[%emt 0:05:15]} ({Predecessor:} 11... Re8 12. Bb2 Qc7 13. a4 Nf8 14. Nc4 N6d7 15. Rad1 f6 16. Ne3 Kh8 17. Nf5 Ne6 {1-0 (52) Turner,M (2516)-Tate,A (2331) Glasgow 2016}) 12. a4 {[%emt 0:00:54]} a5 {[%emt 0:01:45]} 13. Bb2 {[%emt 0:00:53]} Rfe8 {[%emt 0:04:19]} 14. Rfe1 {[%emt 0:02:37]} Bb4 {[%emt 0:06:53]} 15. Red1 {[%emt 0:01:44]} Bxd2 {[%emt 0:10:29]} 16. Rxd2 {[%emt 0:00:39]} Bxf3 {[%emt 0:01:18]} 17. Bxf3 {[%emt 0:00:44]} Nf8 {[%emt 0:01:48]} 18. Ba3 {[%emt 0:01:35]} c5 {[%emt 0:01:41]} 19. Rad1 {[%emt 0:01:42]} Ne6 {[%emt 0:03:47]} 20. c3 {[%emt 0:00:32]} Rad8 {[%emt 0:03:32]} 21. h4 {[%emt 0:04:02]} b6 {[%emt 0:04:55]} 22. Bc1 {[%emt 0:00:17]} Rxd2 {[%emt 0:01:35]} 23. Bxd2 {[%emt 0:00:37]} Rd8 {[%emt 0:01:55]} 24. Be3 {[%emt 0:00:57]} Rxd1+ {[%emt 0:02:40]} 25. Qxd1 {[%emt 0:00:16]} Qd7 {[%emt 0:02:40]} 26. Qxd7 {[%emt 0:00:31]} Nxd7 {[%emt 0:00:05]} 27. Be2 {[%emt 0:00:24]} Kf8 {[%emt 0:02:14]} 28. Bc4 {[%emt 0:01:27]} Ke7 {[%emt 0:01:15]} 29. Kf1 {[%emt 0:02:12]} Nf6 $14 {[%emt 0:03:09]} 30. f3 {[%emt 0:00:13]} Ne8 {[%emt 0:14:26]} 31. Ke1 {[%emt 0:04:02]} Nd6 {[%emt 0:01:51]} 32. Be2 {[%emt 0:01:30]} Kd7 {[%emt 0:03:26]} 33. Kd1 {[%emt 0:09:37]} f6 {[%emt 0:01:02]} 34. Bf1 {[%emt 0:00:35]} Kc6 {[%emt 0:03:00]} 35. Kc2 {[%emt 0:01:12]} c4 {[%emt 0:04:36]} 36. bxc4 {[%emt 0:05:41]} Nc5 {[%emt 0:01:01]} 37. h5 {[%emt 0:01:53]} h6 {[%emt 0:00:33]} 38. Be2 {[%emt 0:07:48]} Nxa4 {[%emt 0:01:31]} 39. Bc1 {[%emt 0:00:21]} Nc5 {[%emt 0:01:16]} 40. g4 {[%emt 0:00:00]} Ne6 {[%emt 0:00:00]} 41. Ba3 {[%emt 0:02:17]} Nb7 {[%emt 0:06:05]} 42. Bd1 {[%emt 0:02:07]} Nbc5 {[%emt 0:01:05]} 43. Kd2 {[%emt 0:00:28]} Kd7 {[%emt 0:06:37]} 1-0

[Event "XXIX Cracovia 2018"]
[Site "Krakow"]
[Date "2018.12.31"]
[Round "6"]
[White "Patsia, Zviad"]
[Black "Kumor, Lukasz"]
[Result "1-0"]
[ECO "A22"]
[WhiteElo "2058"]
[BlackElo "2040"]
[Annotator "NA"]
[PlyCount "149"]
[EventDate "2018.12.27"]
[EventType "swiss"]
[EventCountry "POL"]
[SourceTitle "playchess.com"]
[Source "ChessBase"]
[SourceQuality "1"]
[TimeControl "40/5400+30:1800+30"]

1. c4 e5 2. Nc3 Nf6 3. g3 Nc6 4. Bg2 Bc5 5. e3 O-O 6. Nge2 d6 7. O-O Bf5 8. d4 exd4 9. Nxd4 Bd7 10. Nb3 Bb6 11. Nd5 Nxd5 12. cxd5 Ne5 $11 13. a4 a5 14. h3 Re8 15. Kh2 Qf6 16. e4 Qg6 17. Bf4 f5 18. Bxe5 Rxe5 19. Nd2 Bc5 20. exf5 Qxf5 21. Nf3 Re7 22. h4 Rae8 23. Nd4 Qf6 24. Ne6 Bxe6 25. dxe6 c6 26. Bh3 Qxb2 27. Rb1 Qe5 28. f4 Qf6 29. f5 Qd4 30. Qxd4 Bxd4 31. g4 Be5+ 32. Kg2 h6 33. g5 Rf8 34. gxh6 gxh6 35. Rg1 Kh7 36. Kf3 Rg8 37. h5 Bf6 38. Rg6 Rxg6 39. fxg6+ Kg7 40. Ke4 d5+ 41. Kf5 Bc3 42. Rb3 Bd4 43. Rb1 Kf8 44. Bf1 Rc7 45. Bh3 Bg7 46. Kf4 Ke7 47. Ke3 Kd6 48. Kd3 Re7 49. Bg4 Kc5 50. Bh3 b5 51. axb5 cxb5 52. Rc1+ Kb4 53. Rc6 a4 54. Bg2 a3 55. Bxd5 Ra7 56. Ba2 Be5 57. Rc8 Ka4 58. Ke4 Bf6 59. Rf8 Bg7 60. Rd8 Bf6 61. Rd7 Ra8 62. e7 b4 63. Rd8 Rxd8 64. exd8=Q Bxd8 65. g7 b3 66. Bxb3+ Kxb3 67. g8=Q+ Kb2 68. Qxd8 a2 69. Qd4+ Kb1 70. Kf5 a1=Q 71. Qxa1+ Kxa1 72. Kg6 Kb2 73. Kxh6 Kc3 74. Kg6 Kd4 75. h6 1-0